Cogmind - Beta 13 @@@ ROGUE MODE // 2024.04.01 @ 15:59:29 Player: Kafouille Result: Destroyed by D-53 Grenadier with Mini Grenade Launcher Performance ------------- Evolutions (0) 0 Regions Visited (4) 800 Robots Destroyed (34) 170 Value Destroyed (399) 399 Prototype IDs (0) 0 Alien Tech Used (0) 0 Bonus (0) 0 TOTAL SCORE: 1369 Bonus ------- None Cogmind --------- Core Integrity 0/250 Matter 293/300 Energy 100/100 System Corruption 1% Temperature Cool (0) Movement Core (50) Location -9/Mines Parts ------- > --- POWER (1) -------- (None) > --- PROPULSION (2) --- (None) > --- UTILITY (2) ------ Heat Sink > --- WEAPON (2) ------- (None) > --- INVENTORY (5) ---- Light Ion Engine Wheel High-capacity Battery (250) EM Shotgun Mini Grenade Launcher Peak State ------------ > --- POWER ------------ Ion Engine > --- PROPULSION ------- Wheel Wheel > --- UTILITY ---------- Heat Sink Medium Armor Plating > --- WEAPON ----------- EM Shotgun EM Shotgun > --- INVENTORY -------- Light Ion Engine Wheel Medium Matter Pod [Rating: 10] Favorites ----------- Power Ion Engine Engine Ion Engine Propulsion Wheel Wheel Wheel Utility Medium Armor Plating Device Heat Sink Protection Medium Armor Plating Weapon EM Shotgun Energy Gun EM Shotgun Launcher Rocket Launcher Build | -11 -10 -10 -10 -9 ------- Run | Yrd Mat Min Exi Min Slots Evolved . | . . . . . Power . | . . . . . Propulsion . | . . . . . Utility . | . . . . . Weapon . | . . . . . Parts Attached 15 | 5 7 2 . 1 Power 3 | 1 2 . . . Engine 3 | 1 2 . . . Core . | . . . . . Reactor . | . . . . . Propulsion 3 | 2 . 1 . . Treads . | . . . . . Leg . | . . . . . Wheel 3 | 2 . 1 . . Hover . | . . . . . Flight . | . . . . . Utility 3 | . 3 . . . Device 1 | . 1 . . . Storage . | . . . . . Processor . | . . . . . Hackware . | . . . . . Protection 2 | . 2 . . . Artifact . | . . . . . Weapon 6 | 2 2 1 . 1 Energy Gun 5 | 2 2 1 . . Energy Cannon . | . . . . . Ballistic Gun . | . . . . . Ballistic Cannon . | . . . . . Launcher 1 | . . . . 1 Special Weapon . | . . . . . Impact Weapon . | . . . . . Slashing Weapon . | . . . . . Piercing Weapon . | . . . . . Special Melee Weapon . | . . . . . Unidentified Prototypes . | . . . . . Parts Lost 8 | . . 2 . 6 Power 1 | . . . . 1 Propulsion 3 | . . 1 . 2 Utility 1 | . . . . 1 Weapon 3 | . . 1 . 2 Highest Loss Streak 6 | . . 1 . 6 To Critical Strikes . | . . . . . Average Slot Usage (%) 96 | . 98 91 100 95 Engine 14 | . 14 14 14 14 Wheel 27 | . 28 25 28 28 Device 11 | . 8 14 14 14 Protection 16 | . 18 14 14 9 Energy Gun 25 | . 27 21 28 23 Naked Turns . | . . . . . Heaviest Build 20 | 6 20 19 18 18 Greatest Support 20 | 20 20 20 20 20 Greatest Overweight (x) 1 | . . 1 . 1 Average Overweight (x) . | . . . . . Largest Inventory Capacity 5 | 5 5 5 5 5 Average Capacity 5 | 5 5 5 5 5 Most Carried 5 | 3 5 5 4 5 Average Carried 3 | 1 3 4 4 4 Final Capacity 5 | 5 5 5 5 5 Final Carried 5 | 3 4 4 4 5 Class Distribution -------------------- 100% | Mutant Dominant Class ---------------- Mutant | -10/Materials Mutant | -10/Mines Mutant | -10/Exiles Mutant | -9/Mines Resources | -11 -10 -10 -10 -9 ----------- Run | Yrd Mat Min Exi Min Matter Collected 432 | 329 87 16 . . Remotely . | . . . . . Salvage Created 914 | 46 547 321 . . Parts 71 | 3 40 28 . . Haulers Intercepted 2 | . 2 . . . Recyclers Shooed 1 | . 1 . . . Parts Field Recycled . | . . . . . Retrieved Matter . | . . . . . Parts Self-Destructed . | . . . . . Prevented . | . . . . . Kills | -11 -10 -10 -10 -9 ------- Run | Yrd Mat Min Exi Min Combat Hostiles Destroyed 22 | 1 10 11 . . Guns 22 | 1 10 11 . . Classes Destroyed 9 | 2 5 2 . . Worker 3 | 1 2 . . . Builder 1 | . . 1 . . Tunneler 2 | . . 2 . . Hauler 2 | . 2 . . . Recycler 2 | . 2 . . . Operator 1 | . 1 . . . Watcher 1 | . 1 . . . Swarmer 18 | . 9 9 . . Grunt 4 | 1 1 2 . . Best Kill Streak 5 | 1 5 3 . . Combat Bots Only 4 | 1 4 3 . . Max Kills in Single Turn 2 | 1 1 2 . . Gunslinging . | . . . . . Exploded . | . . . . . Melee . | . . . . . Uniques/NPCs Destroyed . | . . . . . Combat | -11 -10 -10 -10 -9 -------- Run | Yrd Mat Min Exi Min Hostile Shots Fired 83 | 4 27 35 . 17 Missed 22 | 1 8 8 . 5 Damage Taken 850 | 36 172 258 . 384 Core 250 | 12 20 27 . 191 Absorbed by Shields . | . . . . . Core Remaining (%) 95 | 95 . . . . Volleys Fired 70 | 6 41 19 . 4 Largest 2 | 2 2 2 . 2 Hottest 90 | 90 90 90 . 85 Shots Fired 131 | 12 81 32 . 6 Gun 129 | 12 81 32 . 4 Cannon . | . . . . . Launcher 2 | . . . . 2 Special . | . . . . . Kinetic . | . . . . . Thermal 71 | 12 59 . . . Explosive 2 | . . . . 2 Electromagnetic 58 | . 22 32 . 4 Robot Hit Streak 15 | 5 9 15 . 6 Robot Miss Streak 6 | 2 4 6 . 2 Penetration Max . | . . . . . Secondary Targets 2 | . 1 1 . . Max Gunslinging Chain 1 | . 1 1 . . Shots Hit Robots 82 | 7 47 23 . 5 Core Hits 56 | 3 26 22 . 5 Critical Kills . | . . . . . Critical Parts Destroyed . | . . . . . Critical Strikes 2 | 2 . . . . Burn 2 | 2 . . . . Melee Attacks . | . . . . . Impact . | . . . . . Slashing . | . . . . . Piercing . | . . . . . Sneak Attacks . | . . . . . Combat Hostiles . | . . . . . Follow-up Attacks . | . . . . . Damage Inflicted 1090 | 84 545 328 . 133 Guns 992 | 84 545 328 . 35 Cannons . | . . . . . Explosions 98 | . . . . 98 Melee . | . . . . . Ramming . | . . . . . Kinetic . | . . . . . Thermal 459 | 84 375 . . . Explosive 98 | . . . . 98 Electromagnetic 533 | . 170 328 . 35 Impact . | . . . . . Slashing . | . . . . . Piercing . | . . . . . Highest Corruption 1 | . . . . 1 Average Corruption 1 | . . . . 1 Corruption Purged . | . . . . . Corruption Blocked . | . . . . . Overload Shots . | . . . . . Overflow Damage 17 | . . . . 17 Projectiles . | . . . . . Explosions 17 | . . . . 17 Melee . | . . . . . Knockbacks . | . . . . . Impact . | . . . . . Kinetic . | . . . . . Secondary . | . . . . . Self-Inflicted Damage . | . . . . . Shots . | . . . . . Rammed . | . . . . . Targets Rammed . | . . . . . Kicked . | . . . . . Crushed . | . . . . . Highest Temperature 288 | 138 288 75 . 32 Average Temperature 64 | 65 74 29 . 19 Received Heat Transfer 96 | 18 18 60 . . Effects 3 | . 3 . . . Energy Bleed 3 | . 3 . . . Siege Activations . | . . . . . Robots Corrupted . | . . . . . Combat Hostiles . | . . . . . Parts Fried 1 | . . 1 . . Impact Corruptions . | . . . . . Robots Melted . | . . . . . Combat Hostiles . | . . . . . Parts Melted 4 | 3 1 . . . Heat Transferred 1351 | 383 968 . . . Parts Sabotaged . | . . . . . Parts Stolen . | . . . . . Parts Stripped . | . . . . . Power Chain Reactions 1 | . . 1 . . Alert | -11 -10 -10 -10 -9 ------- Run | Yrd Mat Min Exi Min Peak Influence 339 | 25 266 339 . 15 Initial 81 | . 16 81 . . Average 161 | 3 139 253 . 4 Maximum Alert Level 1 | . 1 1 . . Low Security (%) 56 | 100 69 19 . 100 Level 1 43 | . 30 80 . . Level 2 . | . . . . . Level 3 . | . . . . . Level 4 . | . . . . . Level 5 . | . . . . . High Security . | . . . . . Max Security . | . . . . . Squads Dispatched 2 | . 1 . . 1 Investigation . | . . . . . Extermination . | . . . . . Reinforcement 2 | . 1 . . 1 Assault . | . . . . . Garrison . | . . . . . Intercept . | . . . . . Searches Triggered . | . . . . . Construction Impeded 1 | . . . . 1 Haulers Reinforced . | . . . . . Active Scanning Responses . | . . . . . Cargo Convoy Interrupts . | . . . . . Stealth | -11 -10 -10 -10 -9 --------- Run | Yrd Mat Min Exi Min Distress Signals . | . . . . . Communications Jammed . | . . . . . Distress Signals . | . . . . . Times Spotted 40 | 1 19 11 . 9 Peak Tracking Total 7 | 1 6 3 . 7 Tactical Retreats 1 | . 1 . . . Traps | -11 -10 -10 -10 -9 ------- Run | Yrd Mat Min Exi Min Traps Triggered . | . . . . . Indirectly . | . . . . . Trap Hack Attempts . | . . . . . Triggered . | . . . . . Disarmed . | . . . . . Reprogrammed . | . . . . . Reused . | . . . . . Traps Extracted . | . . . . . Installed . | . . . . . Triggered . | . . . . . Machines | -11 -10 -10 -10 -9 ---------- Run | Yrd Mat Min Exi Min Machines Disabled . | . . . . . Max in Single Turn . | . . . . . Machines Repaired . | . . . . . Machines Dismantled . | . . . . . Machines Sabotaged . | . . . . . Overloaded Fab Kills . | . . . . . Hacking | -11 -10 -10 -10 -9 --------- Run | Yrd Mat Min Exi Min Machines Accessed 4 | . 3 . 1 . Terminals 3 | . 3 . . . Fabricators . | . . . . . Repair Stations . | . . . . . Recycling Units . | . . . . . Scanalyzers . | . . . . . Garrison Access . | . . . . . Total Hacks 26 | . 3 . 23 . Successful 24 | . 1 . 23 . Failed 2 | . 2 . . . Catastrophic . | . . . . . Database Lockouts . | . . . . . Manual . | . . . . . Terminals 3 | . 3 . . . Fabricators . | . . . . . Repair Stations . | . . . . . Recycling Units . | . . . . . Scanalyzers . | . . . . . Garrison Access . | . . . . . Terminal Hacks 24 | . 1 . 23 . Record 23 | . . . 23 . Alert Level 1 | . 1 . . . Fabricator Hacks . | . . . . . Repair Station Hacks . | . . . . . Recycling Unit Hacks . | . . . . . Scanalyzer . | . . . . . Garrison Access Hacks . | . . . . . Unauthorized Hacks . | . . . . . Terminals . | . . . . . Fabricators . | . . . . . Repair Stations . | . . . . . Recycling Units . | . . . . . Scanalyzers . | . . . . . Garrison Access . | . . . . . Data Cores Recovered 1 | . 1 . . . Used . | . . . . . Hacking Detections . | . . . . . Full Trace Events . | . . . . . Feedback Events . | . . . . . Feedback Blocked . | . . . . . Robot Schematics Acquired . | . . . . . Robots Built . | . . . . . Authchips . | . . . . . Time . | . . . . . Total Robot Build Rating . | . . . . . Part Schematics Acquired . | . . . . . Parts Built . | . . . . . Authchips . | . . . . . Time . | . . . . . Total Part Build Rating . | . . . . . Parts Repaired . | . . . . . Time . | . . . . . Parts Recycled . | . . . . . Recycled Matter . | . . . . . Retrieved Matter . | . . . . . Retrieved Components . | . . . . . Parts Scanalyzed . | . . . . . Part Schematics Acquired . | . . . . . Parts Damaged . | . . . . . Bothacking | -11 -10 -10 -10 -9 ------------ Run | Yrd Mat Min Exi Min Used RIF Installer . | . . . . . Robots Hacked . | . . . . . Non-combat . | . . . . . Combat . | . . . . . Robot Hacks Applied . | . . . . . Relay Couplers Released . | . . . . . Fabnet Peak Effective % . | . . . . . Robots Rewired . | . . . . . Allies Hacked . | . . . . . Hacks Repelled . | . . . . . Allies | -11 -10 -10 -10 -9 -------- Run | Yrd Mat Min Exi Min Total Allies . | . . . . . Largest Group . | . . . . . Highest-Rated Group . | . . . . . Highest-Rated Ally . | . . . . . Total Orders . | . . . . . Ally Attacks . | . . . . . Total Damage . | . . . . . Kills . | . . . . . Allies Corrupted . | . . . . . Allies Melted . | . . . . . Intel | -11 -10 -10 -10 -9 ------- Run | Yrd Mat Min Exi Min Robot Analysis Total . | . . . . . Derelict Logs Recovered 1 | . . 1 . . Drone Launches . | . . . . . Drone Recoveries . | . . . . . Exploration | -11 -10 -10 -10 -9 ------------- Run | Yrd Mat Min Exi Min Turns Passed 1317 | 89 651 370 176 31 Spaces Moved 1331 | 80 630 381 220 20 Core 24 | 24 . . . . Treads . | . . . . . Legs . | . . . . . Wheels 1307 | 56 630 381 220 20 Hover . | . . . . . Flight . | . . . . . Fastest Speed 50 | 50 80 80 80 80 Average Speed 80 | 71 80 81 80 80 Slowest Speed 95 | 80 80 95 80 95 Overloaded Moves . | . . . . . Propulsion Burnouts . | . . . . . Robots Hopped . | . . . . . Cave-ins Triggered . | . . . . . Exploration Rate (%) 42 | 6 75 66 56 9 Regions Visited 4 Branch Regions 3 Pre-discovered Areas 1 | . . . 1 . Known Exits Taken . | . . . . . Unknown Exits Taken 4 | 1 1 1 1 . Scrap Searched 2 | . . 2 . . Spaces Dug . | . . . . . Terrain Destroyed 20 | . . 3 . 17 Melee . | . . . . . Projectile . | . . . . . AOE 20 | . . 3 . 17 Terrain Rammed . | . . . . . Walls Destroyed . | . . . . . Machines Disabled . | . . . . . Actions | -11 -10 -10 -10 -9 --------- Run | Yrd Mat Min Exi Min Total 1450 | 99 697 406 219 29 Wait 13 | 1 7 2 . 3 Move 1327 | 79 629 380 219 20 Hop . | . . . . . Pick Up 19 | 8 8 2 . 1 Fast Attach 1 | . . 1 . . Attach 11 | 5 5 1 . . Detach . | . . . . . Swap 3 | . 2 . . 1 Drop 6 | . 5 1 . . Fire 70 | 6 41 19 . 4 Melee . | . . . . . Ram . | . . . . . Kick . | . . . . . Crush . | . . . . . Escape Stasis . | . . . . . Rewire . | . . . . . Trap . | . . . . . Miscellaneous . | . . . . . Route ------- -11/Scrapyard -10/Materials (discovered 2 exits: [*Mat] / [*Min]) -10/Mines -10/Exiles (discovered 2 exits: [*Min x2]) -9/Mines History --------- Turn | Location | Event 2 | -11/Scrapyard | Met Revision 17 69 | -11/Scrapyard | Discovered new exit (range 8) 90 | -11/Scrapyard | Entered Materials 318 | -10/Materials | Build established: Mutant 393 | -10/Materials | Discovered new exit (range 14) 526 | -10/Materials | Discovered new exit (range 15) 741 | -10/Materials | Entered Mines 840 | -10/Mines | Deemed a non-threat by the Exiles lab entrance 841 | -10/Mines | Discovered new exit (range 5) 983 | -10/Mines | Learned Materials emergency access door positions 1027 | -10/Mines | Found a hidden stash of uninstalled traps 1111 | -10/Mines | Entered Exiles 1122 | -10/Exiles | Discovered new exit (range 15) 1131 | -10/Exiles | Met 8R-AWN 1145 | -10/Exiles | Met EX-HEX 1192 | -10/Exiles | Met EX-DEC 1214 | -10/Exiles | Learned location of Zion (-7) 1252 | -10/Exiles | Discovered new exit (range 14) 1287 | -10/Exiles | Entered Mines 1293 | -9/Mines | Assembled infested the area 1293 | -9/Mines | Met a Derelict bent on vengeance 1294 | -9/Mines | Received a Rocket Launcher from a helpful Derelict 1313 | -9/Mines | Core integrity fell below 50% 1315 | -9/Mines | Core integrity fell below 20% 1318 | -9/Mines | Destroyed by D-53 Grenadier with Mini Grenade Launcher Last Messages --------------- payload. 01312_ D-53 Grenadier unfolds itself. 01312_ EM Pulse Gun destroyed. 01312_ as-28709 destroyed. 01312_ as-08157 destroyed. 01312_ U-05 Engineer destroyed. 01313_ U-05 Engineer lays Concrete. 01314_ as-17366 destroyed. 01314_ as-01211 destroyed. 01314_ Destroyed Welding Torch. 01315_ The unstable cave ceiling collapses. 01315_ ALERT: Construction progress impeded, dispatching reinforcements to local area. 01316_ as-45633 destroyed. 01316_ as-68169 destroyed. 01316_ as-86990 destroyed. 01318_ The unstable cave ceiling collapses. 01318_ Ion Engine destroyed. 01318_ Rocket Launcher destroyed. 01318_ Wheel destroyed. Map ----- +----------------------------------------------------+ | | | | | | | | | | | | | | | | | | | | | | | | | | | | | | | | | | | | | | | ?????????????????????????????????????????????????? | | ?????????????????????####?##?????????????????????? | | ???????????????????### # # ###???????????????????? | | ??????????????????## ######??????????????? | | ??????????????????# #??????????????? | | ??????????????????# ########???????? | | ???????????????????# @ d ??????? | | ???????????????????## = % u ????????? | | ????????????????????# !d ### #??????????? | | ????????????????????# # #??????????????? | | ????????????????????# ####??????????????? | | ?????????????????# ## ####?????????????????? | | ?????????????????# ##????????????????????? | | ?????????????????##### ?????????????????????? | | ?????????????????????# ?????????????????????? | | ????????????????????? #????????????????????? | | ????????????????????? #????????????????????? | | ????????????????????# ##????????????????????? | | ????????????????????# ##?????????????????????? | | ???????????????????? ???????????????????????? | | ???????????????????? ## ???????????????????????? | | ???????????????????? #??#???????????????????????? | | ???????????????????? ???????????????????????????? | | ??????????????????? #???????????????????????????? | | ??????????????????? #????????????????????????????? | | ?????????????????? #?????????????????????????????? | | ??????????????????#??????????????????????????????? | | ?????????????????????????????????????????????????? | | ?????????????????????????????????????????????????? | | ?????????????????????????????????????????????????? | | ?????????????????????????????????????????????????? | +----------------------------------------------------+ Best States ------------- Heat Dissipation 35 Energy Generation 10 Energy Capacity 250 Matter Stores 300 Matter Capacity 300 Sight Range 16 Terrain Scan Density 10 Armor Coverage 450 Evasion (%) 50 Item Schematics ----------------- None Robot Schematics ------------------ None Fabricated ------------ Nothing Alien Tech Used ----------------- None Achievements -------------- Librarian Tourist Challenges ------------ None Game ------ Seed NuclearConcussivePick Manual? 0 Play Time 00:23:37 Cumulative 3.6 hours Start 2024.04.01 @ 15:36:58 End 2024.04.01 @ 15:59:29 Sessions 1 Manual Loads 0 Difficulty Rogue Special Mode None Game No. 3 Rogue 3 Adventurer 0 Explorer 0 Win Type - Total 0 Types 0/0/0/0/0/0/0/0/0 Lore% 5 Gallery% 9 Achievement% 9 Wizard Run 0 Options --------- Layout 2 ASCII 0 Keyboard 0 Movement Numpad Keybinds 0 Fullscreen 2 Font 32/SmallcapsGlow Map View 50x44 Zoom Use 0% Tactical HUD 1 Map Filters NONE Filters NONE Steam 1 RUN: ce0f2cf5-3b0a-46e4-a1d7-fe80eb2f1804